fUSD/lending_fUSD_20241207
["ID","MTS","AMOUNT","RATE_DAILY","PERIOD"]
[344563576,1733550645375,-500.0,0.00012325,2]
[344563577,1733550645385,-1636.67,0.00012325,2]
[344563579,1733550645395,-2755.03,0.00012325,2]
[344563581,1733550645404,-500.0,0.00012325,2]
[344563583,1733550645414,-500.0,0.00012325,2]
[344563585,1733550645423,-987.78,0.00012325,2]
[344563586,1733550645433,-843.7,0.00012325,2]
[344563587,1733550645442,-341.54,0.00012325,2]
[344563588,1733550645451,-819.93,0.00012325,2]
[344563589,1733550645461,-500.0,0.00012325,2]
[344563590,1733550645470,-500.0,0.00012325,2]
[344563591,1733550645480,-561.23,0.00012325,2]
[344563592,1733550645489,-500.0,0.00012325,2]
[344563593,1733550645499,-500.0,0.00012325,2]
[344563594,1733550645509,-1084.22,0.00012325,2]
[344563595,1733550645518,-500.0,0.00012325,2]
[344563596,1733550645533,-500.0,0.00012325,2]
[344563597,1733550645543,-500.0,0.00012325,2]
[344563598,1733550645552,-1101.56,0.00012325,2]
[344563599,1733550645562,-809.85,0.00012325,2]
[344563600,1733550645571,-500.0,0.00012325,2]
[344563601,1733550645583,-500.0,0.00012325,2]
[344563602,1733550645593,-500.0,0.00012325,2]
[344563603,1733550645603,-500.0,0.00012325,2]
[344563604,1733550645612,-500.0,0.00012325,2]
[344563605,1733550645621,-500.0,0.00012325,2]
[344563606,1733550645636,-507.02,0.00012326,2]
[344563607,1733550645645,-500.0,0.00012326,2]
[344563608,1733550645655,-500.0,0.00012326,2]
[344563609,1733550645665,-500.0,0.00012326,2]
[344563610,1733550645677,-500.0,0.00012326,2]
[344563611,1733550645687,-500.0,0.00012326,2]
[344563612,1733550645696,-500.0,0.00012326,2]
[344563613,1733550645706,-500.0,0.00012326,2]
[344563614,1733550645715,-500.0,0.00012326,2]
[344563615,1733550645726,-500.0,0.00012326,2]
[344563616,1733550645735,-500.0,0.00012326,2]
[344563617,1733550645745,-500.0,0.00012326,2]
[344563619,1733550645755,-500.0,0.00012326,2]
[344563620,1733550645765,-500.0,0.00012326,2]
[344563621,1733550645775,-500.0,0.00012326,2]
[344563622,1733550645784,-500.0,0.00012326,2]
[344563623,1733550645846,-500.0,0.00012326,2]
[344563624,1733550645855,-500.0,0.00012326,2]
[344563625,1733550645864,-500.0,0.00012326,2]
[344563626,1733550645873,-500.0,0.00012326,2]
[344563627,1733550645882,-500.0,0.00012326,2]
[344563628,1733550645891,-500.0,0.00012326,2]
[344563629,1733550645900,-500.0,0.00012326,2]
[344563630,1733550645909,-500.0,0.00012326,2]
[344563631,1733550645919,-500.0,0.00012326,2]
[344563632,1733550645929,-500.0,0.00012326,2]
[344563633,1733550645938,-500.0,0.00012326,2]
[344563634,1733550645947,-500.0,0.00012326,2]
[344563635,1733550645956,-500.0,0.00012326,2]
[344563636,1733550645966,-500.0,0.00012326,2]
[344563637,1733550645976,-500.0,0.00012326,2]
[344563638,1733550645985,-500.0,0.00012326,2]
[344563639,1733550645995,-1202.61,0.00012326,2]
[344563640,1733550646004,-500.0,0.00012326,2]
[344563641,1733550646014,-530.03,0.00012326,2]
[344563642,1733550646024,-500.0,0.00012326,2]
[344563643,1733550646033,-500.0,0.00012326,2]
[344563644,1733550646043,-500.0,0.00012326,2]
[344563645,1733550646052,-500.0,0.00012326,2]
[344563646,1733550646071,-500.0,0.00012326,2]
[344563647,1733550646080,-500.0,0.00012326,2]
[344563648,1733550646089,-500.0,0.00012326,2]
[344563649,1733550646102,-500.0,0.00012326,2]
[344563650,1733550646111,-677.62,0.00012326,2]
[344563651,1733550646120,-500.0,0.00012326,2]
[344563652,1733550646129,-500.44,0.00012326,2]
[344563653,1733550646139,-500.0,0.00012326,2]
[344563654,1733550646148,-500.0,0.00012326,2]
[344563655,1733550646157,-570.93,0.00012326,2]
[344563656,1733550646168,-890.14,0.00012326,2]
[344563657,1733550646178,-812.62,0.00012326,2]
[344563658,1733550646187,-500.0,0.00012326,2]
[344563659,1733550646198,-500.0,0.00012326,2]
[344563660,1733550646207,-500.0,0.00012326,2]
[344563661,1733550646217,-500.0,0.00012326,2]
[344563662,1733550646227,-641.36,0.00012326,2]
[344563663,1733550646236,-267.6,0.00012326,2]
[344563664,1733550646247,-500.0,0.00012326,2]
[344563665,1733550646257,-600.68632617,0.00012326,2]
[344563666,1733550646267,-500.0,0.00012326,2]
[344563667,1733550646276,-500.0,0.00012326,2]
[344563668,1733550646286,-500.0,0.00012326,2]
[344563669,1733550646296,-500.0,0.00012326,2]
[344563670,1733550646308,-500.0,0.00012326,2]
[344563671,1733550646327,-500.0,0.00012326,2]
[344563672,1733550646336,-2043.9,0.00012326,2]
[344563673,1733550646345,-907.15,0.00012326,2]
[344563674,1733550646356,-604.91,0.00012326,2]
[344563675,1733550646365,-517.87,0.00012326,2]
[344563676,1733550646375,-500.0,0.00012326,2]
[344563677,1733550646384,-500.0,0.00012326,2]
[344563678,1733550646394,-655.87,0.00012326,2]
[344563679,1733550646404,-500.0,0.00012326,2]
[344563680,1733550646421,-2309.72,0.00012326,2]
[344563681,1733550646433,-500.0,0.00012326,2]
[344563682,1733550646443,-500.0,0.00012326,2]
[344563683,1733550646453,-500.0,0.00012326,2]
[344563684,1733550646463,-500.0,0.00012326,2]
[344563685,1733550646472,-1184.0,0.00012326,2]
[344563686,1733550646482,-500.0,0.00012326,2]
[344563687,1733550646492,-500.0,0.00012326,2]
[344563688,1733550646502,-500.0,0.00012326,2]
[344563689,1733550646511,-500.0,0.00012326,2]
[344563690,1733550646521,-500.0,0.00012326,2]
[344563691,1733550646531,-500.0,0.00012326,2]
[344563692,1733550646540,-1676.05,0.00012326,2]
[344563693,1733550646550,-500.0,0.00012326,2]
[344563694,1733550646561,-500.0,0.00012326,2]
[344563695,1733550646571,-500.0,0.00012326,2]
[344563696,1733550646581,-500.0,0.00012326,2]
[344563697,1733550646590,-500.0,0.00012326,2]
[344563698,1733550646600,-159.89,0.00012326,2]
[344563699,1733550646610,-500.0,0.00012327,2]
[344563700,1733550646619,-500.0,0.00012327,2]
[344563701,1733550646629,-500.0,0.00012327,2]
[344563702,1733550646639,-500.0,0.00012327,2]
[344563703,1733550646648,-500.0,0.00012327,2]
[344563704,1733550646658,-500.0,0.00012327,2]
[344563705,1733550646671,-500.0,0.00012327,2]
[344563706,1733550646684,-500.0,0.00012327,2]
[344563707,1733550646694,-500.0,0.00012327,2]
[344563708,1733550646704,-500.0,0.00012327,2]
[344563709,1733550646714,-500.0,0.00012327,2]
[344563710,1733550646725,-500.0,0.00012327,2]
[344563711,1733550646734,-500.0,0.00012327,2]
[344563712,1733550646746,-500.0,0.00012327,2]
[344563713,1733550646755,-462.67543064,0.00012327,2]
[344563714,1733550646764,-500.0,0.00012327,2]
[344563715,1733550646774,-500.0,0.00012327,2]
[344563716,1733550646784,-500.0,0.00012327,2]
[344563717,1733550646793,-500.0,0.00012327,2]
[344563718,1733550646802,-500.0,0.00012327,2]
[344563719,1733550646813,-500.0,0.00012327,2]
[344563720,1733550646822,-500.0,0.00012327,2]
[344563721,1733550646832,-500.0,0.00012327,2]
[344563722,1733550646842,-648.48,0.00012327,2]
[344563723,1733550646852,-459.92,0.00012327,2]
[344563724,1733550646862,-500.0,0.00012327,2]
[344563725,1733550646871,-500.0,0.00012327,2]
[344563726,1733550646884,-500.0,0.00012327,2]
[344563727,1733550646900,-500.0,0.00012327,2]
[344563728,1733550646909,-500.0,0.00012327,2]
[344563729,1733550646919,-176.59,0.00012327,2]
[344563730,1733550646928,-500.0,0.00012327,2]
[344563731,1733550646938,-500.0,0.00012327,2]
[344563732,1733550646947,-500.0,0.00012327,2]
[344563733,1733550646956,-500.0,0.00012327,2]
[344563734,1733550646965,-500.0,0.00012327,2]
[344563735,1733550646975,-500.0,0.00012327,2]
[344563736,1733550646984,-500.0,0.00012327,2]
[344563737,1733550646994,-627.93,0.00012327,2]
[344563738,1733550647004,-500.0,0.00012327,2]
[344563740,1733550647014,-500.0,0.00012327,2]
[344563742,1733550647023,-500.0,0.00012327,2]
[344563743,1733550647032,-500.0,0.00012327,2]
[344563745,1733550647042,-500.0,0.00012327,2]
[344563747,1733550647052,-508.06,0.00012327,2]
[344563749,1733550647063,-500.0,0.00012327,2]
[344563751,1733550647072,-500.0,0.00012327,2]
[344563753,1733550647082,-500.0,0.00012327,2]
[344563756,1733550647092,-500.0,0.00012327,2]
[344563758,1733550647103,-500.0,0.00012327,2]
[344563760,1733550647112,-500.0,0.00012327,2]
[344563762,1733550647122,-500.0,0.00012327,2]
[344563764,1733550647132,-515.39,0.00012327,2]
[344563766,1733550647141,-500.0,0.00012327,2]
[344563768,1733550647151,-500.0,0.00012327,2]
[344563770,1733550647165,-500.0,0.00012327,2]
[344563772,1733550647175,-500.0,0.00012327,2]
[344563774,1733550647184,-500.0,0.00012327,2]
[344563776,1733550647194,-500.0,0.00012327,2]
[344563778,1733550647203,-500.0,0.00012327,2]
[344563780,1733550647213,-500.0,0.00012327,2]
[344563782,1733550647222,-500.0,0.00012327,2]
[344563784,1733550647231,-500.0,0.00012327,2]
[344563786,1733550647241,-500.0,0.00012327,2]
[344563788,1733550647251,-500.0,0.00012327,2]
[344563790,1733550647260,-500.0,0.00012327,2]
[344563792,1733550647270,-500.0,0.00012327,2]
[344563794,1733550647280,-500.0,0.00012327,2]
[344563796,1733550647289,-500.0,0.00012327,2]
[344563797,1733550647299,-500.0,0.00012327,2]
[344563798,1733550647309,-500.0,0.00012327,2]
[344563799,1733550647320,-151.0,0.00012329,2]
[344563800,1733550647330,-151.0,0.00012329,2]
[344563801,1733550647340,-151.0,0.00012329,2]
[344563802,1733550647349,-208.747398,0.00012329,2]
[344563803,1733550647358,-500.0,0.00012337,2]
[344563804,1733550647368,-500.0,0.00012337,2]
[344563805,1733550647377,-500.0,0.00012337,2]
[344563806,1733550647388,-500.0,0.00012337,2]
[344563807,1733550647397,-325.96,0.00012337,2]
[344563808,1733550647407,-500.0,0.00012337,2]
[344563809,1733550647419,-500.0,0.00012337,2]
[344563810,1733550647428,-500.0,0.00012337,2]
[344563811,1733550647438,-500.0,0.00012337,2]
[344563812,1733550647447,-500.0,0.00012337,2]
[344563813,1733550647457,-476.823,0.0001235,2]
[344563814,1733550647466,-435.17,0.00012359,2]
[344563815,1733550647476,-435.17,0.00012359,2]
[344563816,1733550647487,-364.0,0.000124,2]
[344563817,1733550647497,-230.0,0.000124,2]
[344563818,1733550647507,-292.76,0.00012431,2]
[344563819,1733550647517,-600.0,0.000125,4]
[344563820,1733550647526,-500.0,0.00012599,2]
[344563821,1733550647536,-500.0,0.00012599,2]
[344563822,1733550647546,-500.0,0.00012599,2]
[344563823,1733550647556,-500.0,0.00012599,2]
[344563824,1733550647566,-500.0,0.00012599,2]
[344563825,1733550647576,-500.0,0.00012599,2]
[344563826,1733550647586,-500.0,0.00012599,2]
[344563827,1733550647596,-500.0,0.00012599,2]
[344563828,1733550647606,-500.0,0.00012599,2]
[344563829,1733550647615,-500.0,0.00012599,2]
[344563830,1733550647625,-784.7,0.00012599,2]
[344563831,1733550647635,-1186.7,0.00012599,2]
[344563832,1733550647644,-403.12,0.00012599,2]
[344563833,1733550647654,-500.0,0.00012599,2]
[344563834,1733550647664,-587.10165587,0.00012599,2]
[344563835,1733550647678,-500.0,0.00012599,2]
[344563836,1733550647687,-500.0,0.00012599,2]
[344563837,1733550647696,-1515.21,0.00012599,2]
[344563838,1733550647705,-2935.54,0.00012599,2]
[344563839,1733550647721,-855.87,0.00012599,2]
[344563840,1733550647730,-500.0,0.00012599,2]
[344563841,1733550647742,-500.0,0.00012599,2]
[344563842,1733550647753,-500.0,0.00012599,2]
[344563843,1733550647763,-500.0,0.00012599,2]
[344563844,1733550647773,-500.0,0.00012599,2]
[344563845,1733550647783,-869.16,0.00012599,2]
[344563846,1733550647792,-2706.41,0.00012599,2]
[344563847,1733550647803,-500.0,0.00012599,2]
[344563848,1733550647814,-660.33,0.00012599,2]
[344563849,1733550647825,-500.0,0.00012599,2]
[344563850,1733550647834,-759.73,0.00012599,2]
[344563851,1733550647844,-500.0,0.00012599,2]
[344563852,1733550647853,-500.0,0.00012599,2]
[344563853,1733550647863,-2069.6,0.00012599,2]
[344563854,1733550647874,-500.0,0.00012599,2]
[344563855,1733550647883,-500.0,0.00012599,2]
[344563856,1733550647893,-500.0,0.00012599,2]
[344563857,1733550647903,-1228.73,0.00012599,2]
[344563858,1733550647913,-500.0,0.00012599,2]
[344563859,1733550647922,-500.0,0.00012599,2]
[344563860,1733550647932,-500.0,0.00012599,2]
[344563861,1733550647942,-1636.67,0.00012599,2]
[344563862,1733550647952,-2755.03,0.00012599,2]
[344563863,1733550647961,-500.0,0.00012599,2]
[344563864,1733550647971,-500.0,0.00012599,2]
[344563865,1733550647980,-843.7,0.00012599,2]
[344563866,1733550647990,-819.93,0.00012599,2]
[344563867,1733550647999,-500.0,0.00012599,2]
[344563868,1733550648009,-500.0,0.00012599,2]
[344563869,1733550648019,-561.23,0.00012599,2]
[344563870,1733550648029,-500.0,0.00012599,2]
[344563871,1733550648039,-500.0,0.00012599,2]
[344563872,1733550648049,-1084.22,0.00012599,2]
[344563873,1733550648059,-500.0,0.00012599,2]
[344563874,1733550648069,-500.0,0.00012599,2]
[344563875,1733550648080,-500.0,0.00012599,2]
[344563876,1733550648089,-1101.56,0.00012599,2]
[344563877,1733550648099,-809.85,0.00012599,2]
[344563878,1733550648109,-176.89,0.00012599,2]
[344563879,1733550648119,-500.0,0.00012599,2]
[344563880,1733550648130,-500.0,0.00012599,2]
[344563881,1733550648140,-500.0,0.00012599,2]
[344563882,1733550648150,-500.0,0.00012599,2]
[344563883,1733550648160,-500.0,0.00012599,2]
[344563884,1733550648170,-507.02,0.000126,2]
[344563885,1733550648180,-500.0,0.000126,2]
[344563886,1733550648190,-500.0,0.000126,2]
[344563887,1733550648199,-500.0,0.000126,2]
[344563888,1733550648209,-500.0,0.000126,2]
[344563889,1733550648219,-500.0,0.000126,2]
[344563890,1733550648230,-500.0,0.000126,2]
[344563891,1733550648241,-500.0,0.000126,2]
[344563892,1733550648251,-500.0,0.000126,2]
[344563893,1733550648260,-500.0,0.000126,2]
[344563894,1733550648270,-500.0,0.000126,2]
[344563895,1733550648284,-500.0,0.000126,2]
[344563896,1733550648294,-500.0,0.000126,2]
[344563897,1733550648304,-500.0,0.000126,2]
[344563898,1733550648314,-500.0,0.000126,2]
[344563899,1733550648324,-500.0,0.000126,2]
[344563900,1733550648333,-500.0,0.000126,2]
[344563901,1733550648344,-500.0,0.000126,2]
[344563902,1733550648354,-500.0,0.000126,2]
[344563903,1733550648364,-500.0,0.000126,2]
[344563904,1733550648374,-500.0,0.000126,2]
[344563905,1733550648384,-500.0,0.000126,2]
[344563906,1733550648394,-500.0,0.000126,2]
[344563907,1733550648404,-511.7344071,0.000126,2]
[344563908,1733550648414,-500.0,0.000126,2]
[344563909,1733550648424,-391.07,0.000126,2]
[344563910,1733550648434,-500.0,0.000126,2]
[344563911,1733550648444,-244.38,0.000126,2]
[344563912,1733550648454,-500.0,0.000126,2]
[344563913,1733550648464,-500.0,0.000126,2]
[344563914,1733550648474,-500.0,0.000126,2]
[344563915,1733550648485,-500.0,0.000126,2]
[344563916,1733550648496,-1202.61,0.000126,2]
[344563917,1733550648506,-500.0,0.000126,2]
[344563918,1733550648516,-530.03,0.000126,2]
[344563919,1733550648526,-500.0,0.000126,2]
[344563920,1733550648536,-500.0,0.000126,2]
[344563921,1733550648548,-500.0,0.000126,2]
[344563922,1733550648560,-500.0,0.000126,2]
[344563923,1733550648570,-500.0,0.000126,2]
[344563924,1733550648580,-500.0,0.000126,2]
[344563925,1733550648590,-500.0,0.000126,2]
[344563926,1733550648600,-500.0,0.000126,2]
[344563927,1733550648610,-677.62,0.000126,2]
[344563928,1733550648620,-500.0,0.000126,2]
[344563929,1733550648630,-500.44,0.000126,2]
[344563930,1733550648640,-500.0,0.000126,2]
[344563931,1733550648650,-500.0,0.000126,2]
[344563932,1733550648660,-570.93,0.000126,2]
[344563933,1733550648673,-890.14,0.000126,2]
[344563934,1733550648683,-812.62,0.000126,2]
[344563935,1733550648692,-500.0,0.000126,2]
[344563936,1733550648702,-500.0,0.000126,2]
[344563937,1733550648714,-500.0,0.000126,2]
[344563938,1733550648724,-500.0,0.000126,2]
[344563939,1733550648734,-641.36,0.000126,2]
[344563940,1733550648743,-500.0,0.000126,2]
[344563941,1733550648755,-1200.0,0.000126,4]
[344563942,1733550648765,-500.0,0.000126,2]
[344563943,1733550648776,-500.0,0.000126,2]
[344563944,1733550648786,-500.0,0.000126,2]
[344563945,1733550648797,-500.0,0.000126,2]
[344563946,1733550648810,-500.0,0.000126,2]
[344563947,1733550648822,-500.0,0.000126,2]
[344563948,1733550648832,-2043.9,0.000126,2]
[344563949,1733550648843,-907.15,0.000126,2]
[344563950,1733550648853,-604.91,0.000126,2]
[344563951,1733550648864,-517.87,0.000126,2]
[344563952,1733550648875,-500.0,0.000126,2]
[344563953,1733550648886,-500.0,0.000126,2]
[344563954,1733550648896,-655.87,0.000126,2]
[344563955,1733550648906,-500.0,0.000126,2]
[344563956,1733550648916,-2309.72,0.000126,2]
[344563957,1733550648927,-500.0,0.000126,2]
[344563958,1733550648939,-500.0,0.000126,2]
[344563959,1733550648949,-500.0,0.000126,2]
[344563960,1733550648960,-500.0,0.000126,2]
[344563961,1733550648970,-1184.0,0.000126,2]
[344563962,1733550648981,-500.0,0.000126,2]
[344563963,1733550648991,-500.0,0.000126,2]
[344563964,1733550649002,-500.0,0.000126,2]
[344563965,1733550649012,-500.0,0.000126,2]
[344563966,1733550649022,-500.0,0.000126,2]
[344563967,1733550649032,-500.0,0.000126,2]
[344563968,1733550649043,-1676.05,0.000126,2]
[344563969,1733550649054,-199.04,0.000126,2]
[344563970,1733550649065,-500.0,0.000126,2]
[344563971,1733550649076,-1000.0,0.000126,2]
[344563972,1733550649087,-1252.0,0.000126,2]
[344563973,1733550649098,-500.0,0.000126,2]
[344563974,1733550649108,-500.0,0.000126,2]
[344563975,1733550649120,-500.0,0.000126,2]
[344563976,1733550649131,-340.18,0.00012601,2]
[344563977,1733550649140,-500.0,0.00012601,2]
[344563978,1733550649152,-500.0,0.00012601,2]
[344563979,1733550649162,-500.0,0.00012601,2]
[344563980,1733550649172,-500.0,0.00012601,2]
[344563981,1733550649182,-500.0,0.00012601,2]
[344563982,1733550649192,-500.0,0.00012601,2]
[344563983,1733550649203,-500.0,0.00012601,2]
[344563984,1733550649214,-500.0,0.00012601,2]
[344563985,1733550649224,-500.0,0.00012601,2]
[344563986,1733550649235,-408.24863036,0.00012601,2]
[344563987,1733550649246,-500.0,0.00012601,2]
[344563988,1733550649256,-500.0,0.00012601,2]
[344563989,1733550649266,-500.0,0.00012601,2]
[344563990,1733550649277,-199.42,0.00012601,2]
[344563991,1733550649288,-648.18,0.00012601,2]
[344563992,1733550649299,-500.0,0.00012601,2]
[344563993,1733550649312,-500.0,0.00012601,2]
[344563994,1733550649325,-500.0,0.00012601,2]
[344563995,1733550649336,-486.86,0.00012601,2]
[344563996,1733550649346,-500.0,0.00012601,2]
[344563997,1733550649357,-500.0,0.00012601,2]
[344563998,1733550649368,-500.0,0.00012601,2]
[344563999,1733550649378,-500.0,0.00012601,2]
[344564000,1733550649388,-500.0,0.00012601,2]
[344564001,1733550649398,-500.0,0.00012601,2]
[344564002,1733550649409,-598.19,0.00012601,2]
[344564003,1733550649419,-500.0,0.00012601,2]
[344564004,1733550649430,-500.0,0.00012601,2]
[344564005,1733550649440,-500.0,0.00012601,2]
[344564006,1733550649450,-500.0,0.00012601,2]
[344564007,1733550649461,-500.0,0.00012601,2]
[344564008,1733550649471,-500.0,0.00012601,2]
[344564009,1733550649481,-627.93,0.00012601,2]
[344564010,1733550649491,-500.0,0.00012601,2]
[344564011,1733550649501,-500.0,0.00012601,2]
[344564012,1733550649511,-500.0,0.00012601,2]
[344564013,1733550649522,-500.0,0.00012601,2]
[344564014,1733550649531,-323.88,0.00012601,2]
[344564015,1733550649542,-577.68,0.00012601,2]
[344564016,1733550649552,-500.0,0.00012601,2]
[344564017,1733550649563,-500.0,0.00012601,2]
[344564018,1733550649574,-500.0,0.00012601,2]
[344564019,1733550649584,-500.0,0.00012601,2]
[344564020,1733550649594,-500.0,0.00012601,2]
[344564021,1733550649605,-500.0,0.00012601,2]
[344564022,1733550649615,-515.39,0.00012601,2]
[344564023,1733550649625,-500.0,0.00012601,2]
[344564024,1733550649635,-500.0,0.00012601,2]
[344564025,1733550649645,-500.0,0.00012601,2]
[344564026,1733550649657,-390.76,0.00012601,2]
[344564027,1733550649670,-500.0,0.00012601,2]
[344564028,1733550649680,-500.0,0.00012601,2]
[344564029,1733550649690,-500.0,0.00012601,2]
[344564030,1733550649700,-500.0,0.00012601,2]
[344564031,1733550649711,-500.0,0.00012601,2]
[344564032,1733550649721,-500.0,0.00012601,2]
[344564033,1733550649731,-500.0,0.00012601,2]
[344564034,1733550649742,-500.0,0.00012601,2]
[344564035,1733550649752,-500.0,0.00012601,2]
[344564036,1733550649763,-500.0,0.00012601,2]
[344564037,1733550649773,-500.0,0.00012601,2]
[344564038,1733550649783,-500.0,0.00012601,2]
[344564039,1733550649794,-500.0,0.00012601,2]
[344564040,1733550649804,-500.0,0.00012601,2]
[344564041,1733550649815,-338.89,0.00012611,2]
[344564042,1733550649827,-500.0,0.00012611,2]
[344564043,1733550649837,-500.0,0.00012611,2]
[344564044,1733550649846,-500.0,0.00012611,2]
[344564045,1733550649856,-500.0,0.00012611,2]
[344564046,1733550649866,-500.0,0.00012611,2]
[344564047,1733550649875,-500.0,0.00012611,2]
[344564048,1733550649885,-500.0,0.00012611,2]
[344564049,1733550649895,-500.0,0.00012611,2]
[344564050,1733550649905,-1900.0,0.000127,4]
[344564051,1733550649924,-1302.0,0.000127,2]
[344564052,1733550649936,-1147.67313428,0.0001274,2]
[344564053,1733550649947,-150.0,0.0001275,2]
[344564054,1733550649958,-150.0,0.0001279,10]
[344564055,1733550649968,-816.0,0.00012791,2]
[344564056,1733550649980,-3761.0,0.00012791,2]
[344564057,1733550649991,-427.93892509,0.00012796,2]
[344564058,1733550650002,-13237.75381944,0.000128,2]
[344564059,1733550650342,-3098.36916934,0.000128,2]
[344564060,1733550650354,-30156.36674094,0.000128,2]
[344564061,1733550650762,-500.0,0.00012325,2]
[344564062,1733550650772,-500.0,0.00012373,2]
[344564063,1733550650782,-500.0,0.00012599,2]
[344564064,1733550650791,-3802.05528492,0.000128,2]
[344564065,1733550650804,-20674.0,0.000128,2]
[344564066,1733550650817,-3996.70000002,0.000128,2]
[344564067,1733550650834,-9691.90406424,0.000128,2]
[344564068,1733550650845,-6800.0,0.000128,2]
[344564069,1733550650857,-8661.885694,0.000128,2]
[344564070,1733550650868,-14968.70392,0.000128,2]
[344564071,1733550650881,-22342.0908,0.000128,2]
[344564072,1733550650892,-27686.29024,0.000128,2]
[344564073,1733550650903,-19192.6977,0.000128,2]
[344564074,1733550650914,-15244.10415,0.000128,2]
[344564075,1733550650925,-37058.4,0.000128,2]
[344564076,1733550650937,-13388.6784171,0.000128,2]
[344564077,1733550650947,-749.90475232,0.000128,2]
[344564078,1733550650956,-1268.43109608,0.000128,2]
[344564079,1733550650965,-2500.0,0.000128,4]
[344564080,1733550650975,-500.0,0.00012873,2]
[344564081,1733550650985,-500.0,0.00012873,2]
[344564082,1733550650994,-500.0,0.00012873,2]
[344564083,1733550651004,-500.0,0.00012873,2]
[344564084,1733550651014,-500.0,0.00012873,2]
[344564085,1733550651024,-500.0,0.00012873,2]
[344564086,1733550651034,-500.0,0.00012873,2]
[344564087,1733550651044,-500.0,0.00012873,2]
[344564088,1733550651054,-500.0,0.00012873,2]
[344564089,1733550651065,-784.7,0.00012873,2]
[344564090,1733550651074,-1186.7,0.00012873,2]
[344564091,1733550651084,-500.0,0.00012873,2]
[344564092,1733550651094,-554.96,0.00012873,2]
[344564093,1733550651104,-500.0,0.00012873,2]
[344564094,1733550651114,-1515.21,0.00012873,2]
[344564095,1733550651123,-2935.54,0.00012873,2]
[344564096,1733550651133,-855.87,0.00012873,2]
[344564097,1733550651143,-500.0,0.00012873,2]
[344564098,1733550651152,-500.0,0.00012873,2]
[344564099,1733550651162,-500.0,0.00012873,2]
[344564100,1733550651172,-500.0,0.00012873,2]
[344564101,1733550651181,-500.0,0.00012873,2]
[344564102,1733550651190,-369.6897345,0.00012873,2]
[344564108,1733551518543,-80000.0,0.0002,120]
[344564115,1733551832046,-248.29790077,7.677e-05,2]
[344564116,1733551832057,-334.03210127,7.677e-05,2]
[344564117,1733551832067,-2715.72185378,7.677e-05,2]
[344564118,1733551832076,-334.03210127,7.678e-05,2]
[344564119,1733551832085,-486.70545148,7.678e-05,2]
[344564120,1733551832095,-205.32886234,7.678e-05,2]